bitfinex/quotes_SOLUSD_20241101
["timestamp","ask_amount","ask_price","bid_price","bid_amount"]
[1730494995801,6.1493,165.31,165.26,20.12713692]
[1730494995978,6.1493,165.31,165.26,35.25473692]
[1730494997890,6.1493,165.31,165.27,14.07633692]
[1730495000286,6.1493,165.31,165.26,35.25483692]
[1730495000490,20.22563692,165.31,165.26,21.1785]
[1730495001174,14.07633692,165.29,165.24,20.12783692]
[1730495001591,14.17633692,165.29,165.24,20.12783692]
[1730495002682,6.1499,165.29,165.25,14.07633692]
[1730495003095,76.1492,165.31,165.27,14.07633692]
[1730495003689,0.1,165.3,165.27,14.07633692]
[1730495003892,0.1,165.3,165.26,14.07633692]
[1730495005183,6.1497,165.3,165.26,14.07633692]
[1730495006703,6.1497,165.3,165.27,14.07633692]
[1730495007199,6.1497,165.3,165.26,14.07633692]
[1730495014505,6.1497,165.3,165.26,9.00836559]
[1730495017114,15.05806559,165.3,165.25,30.18806559]
[1730495017287,15.15806559,165.3,165.25,30.18806559]
[1730495020910,6.0492,165.31,165.26,9.00836559]
[1730495021099,15.05756559,165.31,165.26,9.00836559]
[1730495021992,9.00836559,165.3,165.26,6.0509]
[1730495022990,15.05796559,165.3,165.26,6.0509]
[1730495023404,15.05796559,165.3,165.25,24.13686559]
[1730495023713,9.00836559,165.29,165.25,15.1285]
[1730495024500,6.0503,165.28,165.25,15.1285]
[1730495025090,6.0503,165.28,165.24,15.05996559]
[1730495025791,6.0503,165.28,165.25,9.00836559]
[1730495026103,6.0499,165.29,165.25,9.00836559]
[1730495026310,25.59856559,165.28,165.23,12.33291671]
[1730495026509,79.10836559,165.31,165.25,9.00836559]
[1730495026706,79.10836559,165.31,165.26,9.00836559]
[1730495027109,79.10836559,165.31,165.25,9.00836559]
[1730495027617,85.15756559,165.31,165.25,9.00836559]
[1730495028115,85.15756559,165.31,165.25,15.05946559]
[1730495028509,9.00836559,165.3,165.25,15.05946559]
[1730495029310,15.05816559,165.3,165.25,15.05946559]
[1730495029817,15.05816559,165.3,165.25,6.0511]
[1730495031918,79.10836559,165.29,165.24,15.06006559]
[1730495032223,79.10836559,165.29,165.24,6.0517]
[1730495032397,79.00836559,165.29,165.24,9.00836559]
[1730495033503,6.0503,165.28,165.24,15.06006559]
[1730495034502,6.0503,165.28,165.23,30.19086559]
[1730495034810,15.15866559,165.28,165.23,21.1825]
[1730495035005,9.00836559,165.27,165.23,21.1825]
[1730495035202,15.15866559,165.28,165.23,21.1825]
[1730495036219,15.15866559,165.28,165.23,24.13876559]
[1730495037311,15.15866559,165.28,165.23,30.19086559]
[1730495038325,15.15866559,165.28,165.24,3.01217756]
[1730495038515,15.15866559,165.28,165.23,30.19086559]
[1730495039115,6.1503,165.28,165.23,30.19086559]
[1730495039422,6.1503,165.28,165.24,3.01230625]
[1730495039622,6.1503,165.28,165.23,30.19086559]
[1730495039821,6.1503,165.28,165.24,3.01228475]
[1730495040030,6.1503,165.28,165.23,30.19086559]
[1730495040232,6.1503,165.28,165.24,3.01228856]
[1730495040414,6.0503,165.28,165.23,30.19086559]
[1730495040613,6.0503,165.28,165.24,3.01239111]
[1730495040816,6.0503,165.28,165.23,30.19086559]
[1730495041238,6.1503,165.28,165.24,3.01239246]
[1730495041416,6.1503,165.28,165.23,30.19086559]
[1730495041621,6.1503,165.28,165.24,3.01241399]
[1730495041811,6.0503,165.28,165.23,30.19086559]
[1730495042011,6.0503,165.28,165.24,3.0124095]
[1730495042229,6.0503,165.28,165.23,30.19086559]
[1730495042418,6.0503,165.28,165.24,3.01252558]
[1730495042614,6.0503,165.28,165.23,30.19086559]
[1730495042927,6.0503,165.28,165.24,3.01254408]
[1730495043107,20.0,165.3,165.26,9.00836559]
[1730495043313,31.74746559,165.32,165.27,9.00836559]
[1730495043512,22.7391,165.32,165.27,9.00836559]
[1730495043730,31.74746559,165.32,165.27,9.00836559]
[1730495043911,9.00836559,165.31,165.25,12.02087894]
[1730495044114,9.00836559,165.31,165.26,9.00836559]
[1730495044313,15.05776559,165.31,165.26,15.05916559]
[1730495044715,9.00836559,165.3,165.26,6.0508]
[1730495046529,15.05826559,165.3,165.25,15.05966559]
[1730495047225,6.0499,165.3,165.26,9.00836559]
[1730495047926,15.05826559,165.3,165.25,30.18816559]
[1730495048130,6.0499,165.3,165.25,30.18816559]
[1730495048510,15.05826559,165.3,165.25,30.18816559]
[1730495049317,6.0499,165.3,165.25,30.18816559]
[1730495050334,6.0499,165.3,165.26,9.00836559]
[1730495050630,15.05756559,165.31,165.26,9.00836559]
[1730495050815,6.0492,165.31,165.26,9.00836559]
[1730495051829,6.0492,165.31,165.26,15.05916559]
[1730495052231,15.05756559,165.31,165.26,15.05916559]
[1730495052411,15.05756559,165.31,165.26,30.18676559]
[1730495053817,85.15756559,165.31,165.26,15.1276]
[1730495054016,85.05756559,165.31,165.26,15.1276]
[1730495054216,15.05756559,165.31,165.26,30.18696559]
[1730495057223,70.0,165.33,165.27,9.00836559]
[1730495057224,9.00836559,165.33,165.27,9.00836559]
[1730495057446,9.00836559,165.33,165.28,9.00836559]
[1730495057629,9.00836559,165.35,165.3,9.00836559]
[1730495057833,15.05606559,165.35,165.3,9.00836559]
[1730495058029,30.36336559,165.36,165.3,9.00836559]
[1730495058620,9.00836559,165.37,165.32,9.00836559]
[1730495059033,15.05536559,165.37,165.32,9.00836559]
[1730495059236,9.00836559,165.37,165.32,9.00836559]
[1730495059438,15.05536559,165.37,165.33,5.0485]
[1730495059937,9.00836559,165.36,165.33,5.0485]
[1730495060341,9.00836559,165.36,165.31,15.1221]
[1730495060638,9.00836559,165.34,165.31,15.1221]
[1730495061455,9.00836559,165.36,165.31,15.1221]
[1730495061618,9.00836559,165.36,165.31,21.1713]
[1730495062128,9.00836559,165.37,165.32,9.00836559]
[1730495062624,9.00836559,165.39,165.34,9.00836559]
[1730495062954,44.02197667,165.44,165.31,21.1713]
[1730495062955,9.00836559,165.42,165.36,9.00836559]
[1730495063247,9.00836559,165.43,165.37,9.00836559]
[1730495063549,9.00836559,165.45,165.4,30.16906559]
[1730495063845,9.00836559,165.46,165.41,9.00836559]
[1730495064623,9.00836559,165.46,165.42,6.0452]
[1730495064917,15.05166559,165.47,165.42,6.0452]
[1730495065319,9.00836559,165.48,165.43,9.00836559]
[1730495065548,24.31596559,165.49,165.43,9.00836559]
[1730495065840,9.00836559,165.47,165.42,21.1582]
[1730495066030,9.00836559,165.45,165.42,21.1582]
[1730495066234,9.00836559,165.43,165.38,15.1162]
[1730495066433,9.00836559,165.42,165.39,6.046]
[1730495067027,9.00836559,165.42,165.38,21.1628]
[1730495068259,9.00836559,165.39,165.38,15.1162]
[1730495068837,9.00836559,165.39,165.36,6.047]
[1730495069138,9.00836559,165.38,165.35,15.1192]
[1730495072052,9.00836559,165.39,165.35,15.1192]
[1730495072633,9.00836559,165.4,165.35,15.1192]
[1730495073132,9.00836559,165.39,165.35,21.1669]
[1730495073540,9.00836559,165.4,165.35,21.1669]
[1730495075271,9.00836559,165.4,165.35,24.12756559]
[1730495075444,9.00836559,165.41,165.35,24.12756559]
[1730495076248,9.00836559,165.4,165.35,24.12756559]
[1730495076434,9.00836559,165.4,165.35,21.1669]
[1730495079059,9.00836559,165.4,165.35,30.17526559]
[1730495080261,9.00836559,165.41,165.35,30.17526559]
[1730495080563,9.00836559,165.43,165.37,30.17296559]
[1730495080865,9.00836559,165.43,165.38,9.00836559]
[1730495081757,9.00836559,165.44,165.38,9.00836559]
[1730495082165,9.00836559,165.45,165.39,9.00836559]
[1730495082477,9.00836559,165.46,165.4,9.00836559]
[1730495083348,9.00836559,165.46,165.41,6.0455]
[1730495083552,15.05216559,165.46,165.41,6.0455]
[1730495086754,15.9225,165.5,165.45,9.00836559]
[1730495086955,15.9225,165.5,165.41,51.3873]
[1730495086956,6.0422,165.51,165.46,9.00836559]
[1730495087252,9.00836559,165.52,165.46,9.00836559]
[1730495087455,15.04976559,165.53,165.47,9.00836559]
[1730495087969,9.00836559,165.53,165.48,9.00836559]
[1730495088260,24.93086559,165.54,165.48,9.00836559]
[1730495088651,9.00836559,165.54,165.48,9.00836559]
[1730495088858,9.00836559,165.54,165.49,9.00836559]
[1730495089056,9.00836559,165.54,165.48,9.00836559]
[1730495089468,9.00836559,165.54,165.49,9.00836559]
[1730495090178,9.00836559,165.54,165.48,9.00836559]
[1730495090349,9.00836559,165.53,165.47,9.00836559]
[1730495090674,9.00836559,165.52,165.46,9.00836559]
[1730495090872,9.00836559,165.52,165.47,15.1077]
[1730495091070,9.00836559,165.52,165.47,24.11606559]
[1730495091570,24.08916559,165.58,165.51,9.00836559]
[1730495091774,9.00836559,165.6,165.54,9.00836559]
[1730495091954,15.04666559,165.61,165.55,9.00836559]
[1730495092150,9.00836559,165.61,165.55,9.00836559]
[1730495092502,20.06351193,165.61,165.55,14.02521193]
[1730495092680,20.06351193,165.61,165.56,14.02521193]
[1730495092979,14.02521193,165.61,165.56,20.06511193]
[1730495093147,14.02521193,165.61,165.56,35.16531193]
[1730495093671,20.06341193,165.62,165.56,35.16531193]
[1730495094657,14.02521193,165.61,165.56,35.16531193]
[1730495095180,14.02521193,165.61,165.56,21.1401]
[1730495095365,14.02521193,165.59,165.56,21.1401]
[1730495095747,14.02521193,165.59,165.56,15.1002]
[1730495096155,14.02521193,165.58,165.53,35.16921193]
[1730495096369,14.02521193,165.57,165.53,21.144]
[1730495097163,14.02521193,165.58,165.53,35.16921193]
[1730495097463,20.06461193,165.58,165.53,35.16921193]
[1730495098452,20.06461193,165.58,165.52,14.02521193]
[1730495098453,14.02521193,165.57,165.52,14.02521193]
[1730495101658,14.02521193,165.57,165.53,6.0412]
[1730495102066,20.06461193,165.58,165.53,6.0412]
[1730495102276,14.02521193,165.6,165.54,14.02521193]
[1730495103571,14.02521193,165.6,165.55,14.02521193]
[1730495103975,6.039,165.59,165.55,14.02521193]
[1730495104680,20.06381193,165.61,165.56,14.02521193]
[1730495104979,6.0386,165.61,165.56,14.02521193]
[1730495105151,6.0386,165.61,165.57,14.02521193]
[1730495106752,14.02521193,165.62,165.57,14.02521193]
[1730495109166,14.02521193,165.62,165.56,20.06501193]
[1730495109362,14.02521193,165.63,165.57,14.02521193]
[1730495109574,14.02521193,165.64,165.58,14.02521193]
[1730495109957,14.02521193,165.64,165.59,6.039]
[1730495110667,14.02521193,165.63,165.59,6.039]
[1730495111062,6.0368,165.65,165.59,6.039]
[1730495111063,14.02521193,165.64,165.59,6.039]
[1730495111996,20.06251193,165.64,165.59,20.06421193]
[1730495112562,6.0373,165.64,165.6,14.02521193]
[1730495113168,20.06211193,165.65,165.6,14.02521193]
[1730495113380,35.14251193,165.66,165.61,14.02521193]
[1730495113785,85.088,165.7,165.59,21.1365]
[1730495113786,14.02521193,165.67,165.62,14.02521193]
[1730495113973,14.02521193,165.67,165.59,21.1365]
[1730495113974,6.0361,165.67,165.63,14.02521193]
[1730495114281,6.0361,165.67,165.63,20.06271193]
[1730495114484,15.00516402,165.67,165.63,6.0375]
[1730495114789,8.96906402,165.64,165.58,24.06726402]
[1730495114995,8.96906402,165.63,165.58,24.06726402]
[1730495115483,8.96906402,165.63,165.59,6.0389]
[1730495115784,15.00626402,165.64,165.59,15.00796402]
[1730495117184,15.00626402,165.64,165.55,15.6887]
[1730495117185,8.96906402,165.61,165.56,15.00916402]
[1730495117501,8.96906402,165.6,165.56,6.0401]
[1730495118194,8.96906402,165.59,165.55,21.141]
[1730495120092,8.96906402,165.6,165.55,21.141]
[1730495120563,14.02690347,165.6,165.55,35.16790347]
[1730495121275,14.02690347,165.59,165.54,14.02690347]
[1730495122599,14.02690347,165.6,165.55,21.1415]
[1730495126295,14.02690347,165.6,165.55,14.02690347]
[1730495128896,14.02690347,165.6,165.56,6.0401]
[1730495130398,20.06550347,165.6,165.56,6.0401]
[1730495139200,14.02690347,165.58,165.53,20.3363018]
[1730495139406,14.02690347,165.57,165.54,3.0015907]
[1730495139904,14.02690347,165.57,165.53,12.35029833]
[1730495140106,14.02690347,165.57,165.54,3.00160513]
[1730495140398,14.02690347,165.58,165.54,3.00178866]
[1730495140601,8.97896785,165.59,165.54,11.98075651]
[1730495142809,15.01806785,165.59,165.55,6.0404]
[1730495146805,15.01806785,165.59,165.54,21.1428]
[1730495148124,15.01806785,165.59,165.54,30.12176785]
[1730495149287,8.97896785,165.58,165.54,21.1428]
[1730495150508,8.97896785,165.59,165.54,30.12176785]
[1730495156213,8.97896785,165.59,165.54,21.1428]
[1730495157118,8.97896785,165.58,165.54,21.1428]
[1730495158512,8.97896785,165.59,165.54,21.1428]
[1730495158699,8.97896785,165.6,165.54,30.12176785]
[1730495160033,15.01776785,165.6,165.55,8.97896785]
[1730495161516,15.01776785,165.6,165.55,15.01906785]
[1730495162216,8.97896785,165.59,165.55,6.0401]
[1730495162905,8.97896785,165.58,165.55,6.0401]
[1730495164011,8.97896785,165.59,165.55,6.0401]
[1730495170032,6.0388,165.6,165.55,30.12016785]
[1730495170516,15.01726785,165.61,165.56,3.0061778]
[1730495170825,15.01726785,165.61,165.56,8.97896785]
[1730495170826,8.97896785,165.61,165.56,8.97896785]
[1730495171118,15.01716785,165.62,165.57,3.00598311]
[1730495171425,15.01716785,165.62,165.56,8.97896785]
[1730495171625,15.01716785,165.62,165.57,3.00575911]
[1730495171809,15.01716785,165.62,165.56,8.97896785]
[1730495172116,15.01716785,165.62,165.57,9.0454358]
[1730495172300,15.01716785,165.62,165.57,6.0397]
[1730495174024,15.01716785,165.62,165.57,21.139]
[1730495174523,8.97896785,165.61,165.57,21.139]
[1730495174722,8.97896785,165.59,165.57,15.0993]
[1730495175618,8.97896785,165.58,165.57,15.0993]
[1730495175822,8.97896785,165.58,165.55,6.0404]
[1730495176826,8.97896785,165.58,165.55,21.1415]
[1730495177426,8.97896785,165.57,165.54,12.3505049]
[1730495177603,8.97896785,165.57,165.55,3.00552564]
[1730495177803,8.97896785,165.57,165.54,6.0406]
[1730495178127,8.97896785,165.57,165.55,3.00552644]
[1730495178296,8.97896785,165.57,165.54,6.0406]
[1730495178502,8.97896785,165.57,165.55,3.00553088]
[1730495178826,8.97896785,165.57,165.52,15.1033]
[1730495179028,8.97896785,165.57,165.53,3.00553332]
[1730495179218,8.97896785,165.57,165.54,3.00553332]
[1730495179526,8.97896785,165.57,165.52,30.12376785]
[1730495179707,15.01836785,165.58,165.53,11.98450416]
[1730495180018,15.01836785,165.58,165.54,9.04613631]
[1730495180219,15.01836785,165.58,165.54,6.0406]
[1730495180626,8.97896785,165.56,165.54,6.0406]
[1730495180923,15.0948,165.62,165.54,6.0406]
[1730495180924,8.97896785,165.62,165.56,23.776884]
[1730495181114,8.97896785,165.64,165.58,8.97896785]
[1730495181423,8.97896785,165.63,165.58,8.97896785]
[1730495181623,8.97896785,165.63,165.57,8.97896785]
[1730495182004,8.97896785,165.63,165.58,6.0393]
[1730495182334,8.97896785,165.62,165.58,6.0393]
[1730495183325,8.97896785,165.62,165.58,21.1377]
[1730495183503,8.97896785,165.61,165.55,8.97896785]
[1730495183709,8.97896785,165.6,165.56,3.00497393]
[1730495183904,8.97896785,165.6,165.55,8.97896785]
[1730495184122,8.97896785,165.6,165.56,3.00494251]
[1730495184304,8.97896785,165.6,165.55,8.97896785]
[1730495184503,8.97896785,165.6,165.56,3.00490242]
[1730495184809,8.97896785,165.6,165.56,21.1403]
[1730495187621,8.97896785,165.61,165.56,30.11926785]
[1730495188529,15.01706785,165.62,165.57,8.97896785]
[1730495189832,15.01706785,165.62,165.57,15.01846785]
[1730495190532,6.0375,165.63,165.58,8.97896785]
[1730495191225,6.0375,165.63,165.59,8.97896785]
[1730495193719,6.0375,165.63,165.59,15.01786785]
[1730495195323,6.0375,165.63,165.58,8.97896785]
[1730495196635,6.0375,165.63,165.58,15.01796785]
[1730495200221,6.0368,165.65,165.61,8.97896785]
[1730495200537,6.0368,165.65,165.62,8.97896785]
[1730495201123,6.0368,165.65,165.59,23.776884]
[1730495201124,22.4058,165.66,165.63,8.97896785]
[1730495201847,22.4058,165.66,165.62,8.97896785]
[1730495205076,22.4058,165.66,165.62,15.01666785]
[1730495205553,22.4058,165.66,165.61,15.01706785]
[1730495205756,22.4058,165.66,165.62,8.97896785]
[1730495207639,6.0361,165.67,165.63,8.97896785]
[1730495210159,6.0361,165.67,165.62,24.07366785]
[1730495211653,6.0361,165.67,165.62,30.11156785]
[1730495212741,6.0361,165.67,165.63,8.97896785]
[1730495213048,6.0358,165.68,165.64,8.97896785]
[1730495215156,6.0358,165.68,165.63,8.97896785]
[1730495216458,6.0358,165.68,165.64,8.97896785]
[1730495217963,26.0353,165.69,165.64,8.97896785]
[1730495218859,26.0353,165.69,165.64,15.01576785]
[1730495221777,16.639,165.7,165.67,8.97896785]
[1730495222134,22.674,165.7,165.66,8.97896785]
[1730495224657,8.97896785,165.68,165.64,15.0929]
[1730495224958,8.97896785,165.67,165.64,15.0929]
[1730495225953,15.01486785,165.68,165.64,15.0929]
[1730495229662,6.0359,165.68,165.63,8.97896785]
[1730495230350,15.01486785,165.68,165.62,8.97896785]
[1730495231665,8.97896785,165.66,165.61,8.97896785]
[1730495231855,8.97896785,165.66,165.6,15.0966]
[1730495231856,8.97896785,165.66,165.6,30.11386785]
[1730495232763,6.0368,165.65,165.6,30.11386785]
[1730495233983,6.0364,165.66,165.61,8.97896785]
[1730495237879,6.0364,165.66,165.61,15.01686785]
[1730495238468,15.01536785,165.66,165.61,30.11256785]
[1730495239067,8.97896785,165.64,165.6,6.0385]
[1730495239271,6.0364,165.66,165.59,15.28648787]
[1730495239272,8.97896785,165.63,165.59,12.34642002]
[1730495240292,15.2649,165.69,165.62,8.97896785]
[1730495240577,15.2649,165.69,165.6,8.97896785]
[1730495240578,6.0346,165.71,165.66,8.97896785]
[1730495240878,15.01356785,165.71,165.65,8.97896785]
[1730495242062,20.0,165.7,165.65,8.97896785]
[1730495247195,6.0353,165.69,165.66,8.97896785]
[1730495247684,6.0353,165.69,165.65,8.97896785]
[1730495253196,20.0,165.7,165.65,15.01556785]
[1730495255386,26.0351,165.7,165.65,15.01556785]
[1730495255979,26.0351,165.7,165.66,8.97896785]
[1730495256896,6.0347,165.71,165.66,15.01526785]
[1730495257782,6.0343,165.72,165.68,8.97896785]
[1730495258000,21.2989,165.73,165.68,8.97896785]
[1730495258293,20.0,165.72,165.68,8.97896785]
[1730495258480,21.2989,165.73,165.68,8.97896785]
[1730495258980,21.2989,165.73,165.68,15.01446785]
[1730495259796,30.27786785,165.73,165.68,15.01446785]
[1730495262707,8.97896785,165.71,165.66,24.07006785]
[1730495263787,8.97896785,165.72,165.66,30.10646785]
[1730495264788,15.01316785,165.72,165.66,30.10646785]
[1730495265113,15.01316785,165.72,165.67,8.97896785]
[1730495266105,15.01316785,165.72,165.68,6.0357]
[1730495266487,6.0342,165.72,165.68,6.0357]
[1730495267086,9.58794765,165.74,165.69,8.97896785]
[1730495268389,15.62154765,165.74,165.69,6.035]
[1730495268617,8.97896785,165.73,165.69,6.035]
[1730495271507,15.01286785,165.73,165.69,6.035]
[1730495273589,6.0339,165.73,165.69,6.035]
[1730495275593,8.97896785,165.7,165.66,6.0363]
[1730495276092,8.97896785,165.71,165.66,6.0363]
[1730495276507,8.97896785,165.71,165.66,21.1274]
[1730495276704,15.01376785,165.71,165.66,21.1274]
[1730495284624,6.0348,165.71,165.66,24.07006785]
[1730495285423,15.01376785,165.71,165.66,15.0911]
[1730495286016,15.01376785,165.71,165.66,21.1275]
[1730495290397,6.0348,165.71,165.66,24.07006785]
[1730495291822,6.0348,165.71,165.66,30.10646785]
[1730495297724,6.0348,165.71,165.66,15.0911]
[1730495298533,30.51806785,165.73,165.66,24.07006785]
[1730495298829,15.5049,165.73,165.68,8.97896785]
[1730495299223,24.48386785,165.73,165.68,8.97896785]
[1730495300104,24.48386785,165.73,165.69,6.0353]
[1730495300931,30.51786785,165.73,165.69,6.0353]
[1730495302213,0.6089798,165.74,165.69,30.10266785]
[1730495302505,6.6424798,165.74,165.69,30.10266785]
[1730495303701,15.62144765,165.74,165.69,30.10266785]
[1730495304019,0.6089798,165.74,165.7,8.97896785]
[1730495304232,0.6089798,165.74,165.69,30.10266785]
[1730495305427,0.6089798,165.74,165.7,8.97896785]
[1730495307122,0.6089798,165.74,165.7,15.01366785]
[1730495307301,0.6089798,165.74,165.7,30.10116785]
[1730495308029,0.6089798,165.74,165.71,8.97896785]
[1730495308201,0.6089798,165.74,165.7,30.10116785]
[1730495312315,0.6089798,165.74,165.71,8.97896785]
[1730495312728,0.6089798,165.74,165.7,30.10116785]
[1730495314515,6.6425798,165.74,165.7,30.10116785]
[1730495315134,6.6425798,165.74,165.7,21.1222]
[1730495316927,0.6089798,165.74,165.73,8.97896785]
[1730495317316,0.6089798,165.74,165.71,8.97896785]
[1730495319133,0.6089798,165.74,165.72,6.0342]
[1730495320331,8.97896785,165.73,165.68,15.0891]
[1730495320630,8.97896785,165.71,165.68,21.1248]
[1730495320836,8.97896785,165.72,165.68,21.1248]
[1730495321133,8.97896785,165.72,165.68,15.0891]
[1730495321711,8.97896785,165.71,165.68,15.0891]
[1730495324216,8.97896785,165.71,165.66,6.30539306]
[1730495324417,8.97896785,165.67,165.65,3.14881614]
[1730495324619,8.97896785,165.66,165.63,6.0375]
[1730495324829,8.97896785,165.66,165.64,3.14896542]
[1730495325027,8.97896785,165.66,165.65,3.14896542]
[1730495325233,8.97896785,165.67,165.65,3.14896542]
[1730495325424,8.97896785,165.67,165.63,6.0375]
[1730495325748,8.97896785,165.67,165.64,3.1490599]
[1730495325923,8.97896785,165.67,165.65,3.1490599]
[1730495326243,8.97896785,165.68,165.63,30.11026785]
[1730495326441,8.97896785,165.68,165.64,3.14919]
[1730495326818,8.97896785,165.68,165.65,9.18599]
[1730495327014,8.97896785,165.68,165.65,6.0368]
[1730495327347,8.97896785,165.68,165.65,21.1288]
[1730495328337,8.97896785,165.69,165.65,15.092]
[1730495328736,8.97896785,165.69,165.65,18.24147504]
[1730495328944,8.97896785,165.69,165.65,15.092]
[1730495329524,8.97896785,165.69,165.65,21.1288]
[1730495329852,8.97896785,165.68,165.65,21.1288]
[1730495331947,8.97896785,165.68,165.65,15.092]
[1730495335153,8.97896785,165.69,165.65,15.092]
[1730495336643,8.97896785,165.68,165.65,15.092]
[1730495340561,8.97896785,165.67,165.65,15.092]
[1730495343255,8.97896785,165.68,165.65,15.092]
[1730495343451,8.97896785,165.67,165.65,15.092]
[1730495343653,8.97896785,165.68,165.65,15.092]
[1730495347640,8.97896785,165.7,165.65,24.07096785]
[1730495348347,8.97896785,165.7,165.65,15.092]
[1730495349048,8.97896785,165.7,165.65,21.1288]
[1730495350444,8.97896785,165.68,165.65,21.1288]
[1730495351846,8.97896785,165.68,165.65,15.092]
[1730495355772,8.97896785,165.69,165.65,15.092]
[1730495363778,8.97896785,165.68,165.65,15.092]
[1730495363988,8.97896785,165.67,165.65,15.092]
[1730495370668,8.97896785,165.66,165.63,6.30760543]
[1730495370966,35.9158714,165.68,165.59,39.17256785]
[1730495370967,8.97896785,165.64,165.6,6.0386]
[1730495371162,8.97896785,165.62,165.6,6.0386]
[1730495371372,8.97896785,165.62,165.59,21.4063364]
[1730495371581,8.97896785,165.62,165.61,3.15714505]
[1730495373799,15.01686785,165.62,165.61,3.15714505]
[1730495375460,8.97896785,165.62,165.61,3.15714505]
[1730495376359,15.01686785,165.62,165.61,3.15714505]
[1730495376561,15.01686785,165.62,165.58,6.0392]
[1730495376881,8.97896785,165.59,165.56,21.40978273]
[1730495377078,8.97896785,165.58,165.56,15.0996]
[1730495377262,8.97896785,165.58,165.57,3.152892]
[1730495378373,20.0,165.57,165.55,3.152892]
[1730495378681,8.97896785,165.56,165.53,9.193992]
[1730495378874,8.97896785,165.55,165.54,3.152892]
[1730495380468,8.97896785,165.55,165.53,6.0411]
[1730495381070,8.97896785,165.55,165.53,9.193992]
[1730495381369,8.97896785,165.55,165.53,6.0411]
[1730495383069,8.97896785,165.56,165.53,21.1441]
[1730495384787,8.97896785,165.56,165.53,15.103]
[1730495395699,8.97896785,165.56,165.53,12.603]
[1730495398100,8.97896785,165.55,165.53,12.603]
[1730495400302,42.1874714,165.6,165.53,12.603]
[1730495400501,8.97896785,165.59,165.54,8.97896785]
[1730495402894,8.97896785,165.59,165.55,6.0404]
[1730495404169,8.97896785,165.58,165.53,21.58196785]
[1730495405800,8.97896785,165.58,165.53,27.62316785]
[1730495414185,8.97896785,165.58,165.54,3.14517944]
[1730495414391,8.97896785,165.58,165.55,6.0404]
[1730495416092,8.97896785,165.58,165.54,3.14692839]
[1730495416288,8.97896785,165.58,165.55,3.14692839]
[1730495417296,8.97896785,165.58,165.55,9.18702839]
[1730495418210,8.97896785,165.58,165.54,15.102]
[1730495418411,8.97896785,165.58,165.55,3.15119805]
[1730495418706,8.97896785,165.58,165.54,21.1428]
[1730495418919,8.97896785,165.58,165.55,3.15118022]
[1730495419098,8.97896785,165.58,165.54,21.1428]
[1730495419509,8.97896785,165.58,165.55,3.15257733]
[1730495419801,8.97896785,165.58,165.56,3.15257733]
[1730495420118,8.97896785,165.58,165.55,6.0402]
[1730495420313,8.97896785,165.57,165.56,3.1526944]
[1730495420692,8.97896785,165.57,165.54,21.1427]
[1730495420890,8.97896785,165.55,165.54,21.1427]
[1730495421206,8.97896785,165.55,165.54,24.29653202]
[1730495423115,8.97896785,165.55,165.54,24.29926285]
[1730495424115,8.97896785,165.55,165.54,18.2591436]
[1730495425296,8.97896785,165.55,165.54,24.2999436]
[1730495425500,8.97896785,165.57,165.54,24.2999436]
[1730495425705,8.97896785,165.57,165.55,3.1571436]
[1730495425995,8.97896785,165.56,165.54,21.1428]
[1730495426196,8.97896785,165.56,165.55,3.15716579]
[1730495426719,8.97896785,165.56,165.55,3.15709605]
[1730495427225,8.97896785,165.56,165.55,3.15711025]
[1730495428319,8.97896785,165.56,165.54,15.102]
[1730495429220,8.97896785,165.56,165.55,3.15683128]
[1730495430327,8.97896785,165.56,165.54,21.1426]
[1730495430515,8.97896785,165.56,165.55,3.15668133]
[1730495430825,8.97896785,165.56,165.55,3.1566267]
[1730495432211,8.97896785,165.57,165.55,3.1566267]
[1730495432508,8.97896785,165.57,165.54,21.1426]
[1730495434424,8.97896785,165.57,165.54,15.102]
[1730495442511,15.01766785,165.6,165.55,8.97896785]
[1730495442720,15.01716785,165.61,165.55,8.97896785]
[1730495442908,15.01716785,165.61,165.56,8.97896785]
[1730495443095,31.48896785,165.62,165.56,8.97896785]
[1730495444011,31.48896785,165.62,165.57,24.29388267]
[1730495444206,31.48896785,165.62,165.57,21.139]
[1730495447124,8.97896785,165.61,165.57,21.139]
[1730495447908,25.45106785,165.62,165.57,30.11796785]
[1730495448111,25.45106785,165.62,165.58,3.15411255]
[1730495448420,25.45106785,165.62,165.57,30.11796785]
[1730495448630,25.45106785,165.62,165.58,3.15398362]
[1730495448809,25.45106785,165.62,165.57,30.11796785]
[1730495449421,25.45106785,165.62,165.58,3.15393748]
[1730495449612,25.45106785,165.62,165.57,30.11796785]
[1730495450825,25.45106785,165.62,165.57,8.97896785]
[1730495451027,25.45106785,165.62,165.58,21.1377]